fUST/lending_fUST_20240902
["ID","MTS","AMOUNT","RATE_DAILY","PERIOD"]
[336881573,1725229839543,-500.0,0.00024657,2]
[336881574,1725229839552,-500.0,0.00024657,2]
[336881575,1725229839564,-500.0,0.00024657,2]
[336881576,1725229839574,-500.0,0.00024657,2]
[336881577,1725229839584,-500.0,0.00024657,2]
[336881578,1725229839594,-500.0,0.00024657,2]
[336881579,1725229839604,-250.45872117,0.00024657,2]
[336881580,1725229839615,-500.0,0.00024657,2]
[336881581,1725229839625,-500.0,0.00024657,2]
[336881582,1725229839635,-500.0,0.00024657,2]
[336881583,1725229839646,-500.0,0.00024657,2]
[336881584,1725229839658,-500.0,0.00024657,2]
[336881585,1725229839669,-500.0,0.00024657,2]
[336881586,1725229839679,-500.0,0.00024657,2]
[336881587,1725229839690,-500.0,0.00024657,2]
[336881588,1725229839700,-500.0,0.00024657,2]
[336881589,1725229839709,-500.0,0.00024657,2]
[336881590,1725229839719,-500.0,0.00024657,2]
[336881591,1725229839731,-501.77420178,0.00024657,2]
[336881592,1725229839740,-616.25694596,0.00024657,2]
[336881593,1725229839751,-200.0,0.00024657,2]
[336881594,1725229839761,-656.9,0.00024657,2]
[336881595,1725229839771,-500.0,0.00024657,2]
[336881596,1725229839780,-500.0,0.00024657,2]
[336881597,1725229839790,-500.0,0.00024657,2]
[336881598,1725229839800,-500.0,0.00024657,2]
[336881599,1725229839810,-500.0,0.00024657,2]
[336881600,1725229839823,-500.0,0.00024657,2]
[336881603,1725229839833,-500.0,0.00024657,2]
[336881604,1725229839843,-500.0,0.00024657,2]
[336881606,1725229839852,-500.0,0.00024657,2]
[336881607,1725229839862,-500.0,0.00024657,2]
[336881608,1725229839872,-500.0,0.00024657,2]
[336881609,1725229839881,-500.0,0.00024657,2]
[336881610,1725229839890,-500.0,0.00024657,2]
[336881611,1725229839901,-500.0,0.00024657,2]
[336881612,1725229839911,-500.0,0.00024657,2]
[336881613,1725229839921,-500.0,0.00024657,2]
[336881614,1725229839931,-805.62,0.00024657,2]
[336881616,1725229839939,-587.44,0.00024657,2]
[336881618,1725229839949,-500.0,0.00024657,2]
[336881620,1725229839959,-500.0,0.00024657,2]
[336881622,1725229839969,-718.45,0.00024657,2]
[336881624,1725229839978,-500.0,0.00024657,2]
[336881626,1725229839988,-500.0,0.00024657,2]
[336881628,1725229839998,-500.0,0.00024657,2]
[336881629,1725229840008,-500.0,0.00024657,2]
[336881630,1725229840018,-527.33,0.00024657,2]
[336881631,1725229840028,-500.0,0.00024657,2]
[336881633,1725229840038,-500.0,0.00024657,2]
[336881634,1725229840048,-1234.61,0.00024657,2]
[336881636,1725229840058,-500.0,0.00024657,2]
[336881637,1725229840071,-500.0,0.00024657,2]
[336881639,1725229840081,-181.06408415,0.00024657,2]
[336881641,1725229840091,-500.0,0.00024657,2]
[336881643,1725229840101,-500.0,0.00024657,2]
[336881645,1725229840111,-500.0,0.00024657,2]
[336881647,1725229840120,-500.0,0.00024657,2]
[336881649,1725229840131,-500.0,0.00024657,2]
[336881650,1725229840141,-500.0,0.00024657,2]
[336881652,1725229840150,-500.0,0.00024657,2]
[336881654,1725229840160,-500.0,0.00024657,2]
[336881655,1725229840169,-500.0,0.00024657,2]
[336881656,1725229840179,-500.0,0.00024657,2]
[336881657,1725229840189,-519.83491729,0.00024657,2]
[336881658,1725229840199,-500.0,0.00024657,2]
[336881659,1725229840209,-500.0,0.00024657,2]
[336881661,1725229840219,-500.0,0.00024657,2]
[336881662,1725229840229,-500.0,0.00024657,2]
[336881664,1725229840240,-500.0,0.00024657,2]
[336881666,1725229840250,-500.0,0.00024657,2]
[336881668,1725229840262,-444.65031992,0.00024657,2]
[336881669,1725229840271,-500.0,0.00024657,2]
[336881670,1725229840281,-500.0,0.00024657,2]
[336881671,1725229840291,-500.0,0.00024657,2]
[336881672,1725229840300,-500.0,0.00024657,2]
[336881673,1725229840310,-500.0,0.00024657,2]
[336881674,1725229840325,-500.0,0.00024657,2]
[336881675,1725229840335,-500.0,0.00024657,2]
[336881677,1725229840345,-500.0,0.00024657,2]
[336881678,1725229840354,-500.0,0.00024657,2]
[336881679,1725229840364,-500.0,0.00024657,2]
[336881680,1725229840375,-500.0,0.00024657,2]
[336881681,1725229840384,-3865.88,0.00024657,2]
[336881682,1725229840394,-500.0,0.00024657,2]
[336881683,1725229840405,-831.9,0.00024657,2]
[336881684,1725229840415,-500.0,0.00024657,2]
[336881685,1725229840424,-500.0,0.00024657,2]
[336881686,1725229840434,-500.0,0.00024657,2]
[336881687,1725229840444,-500.0,0.00024657,2]
[336881688,1725229840454,-512.79541857,0.00024657,2]
[336881689,1725229840463,-500.0,0.00024657,2]
[336881690,1725229840473,-500.0,0.00024657,2]
[336881691,1725229840482,-1318.18,0.00024657,2]
[336881692,1725229840492,-500.0,0.00024657,2]
[336881693,1725229840502,-500.0,0.00024657,2]
[336881694,1725229840512,-500.0,0.00024657,2]
[336881695,1725229840521,-500.96254311,0.00024657,2]
[336881696,1725229840531,-500.0,0.00024657,2]
[336881697,1725229840540,-500.0,0.00024657,2]
[336881698,1725229840550,-543.89,0.00024657,2]
[336881699,1725229840560,-500.0,0.00024657,2]
[336881700,1725229840576,-500.0,0.00024657,2]
[336881701,1725229840590,-500.0,0.00024657,2]
[336881702,1725229840600,-681.52,0.00024657,2]
[336881703,1725229840609,-642.97,0.00024657,2]
[336881704,1725229840620,-500.0,0.00024657,2]
[336881705,1725229840630,-538.98,0.00024657,2]
[336881706,1725229840641,-500.0,0.00024657,2]
[336881707,1725229840650,-603.14385645,0.00024657,2]
[336881708,1725229840664,-500.0,0.00024657,2]
[336881709,1725229840674,-500.0,0.00024657,2]
[336881710,1725229840684,-819.0,0.00024657,2]
[336881711,1725229840693,-500.0,0.00024657,2]
[336881712,1725229840703,-611.79,0.00024657,2]
[336881713,1725229840712,-500.0,0.00024657,2]
[336881714,1725229840722,-458.69737463,0.00024657,2]
[336881715,1725229840732,-500.0,0.00024657,2]
[336881716,1725229840742,-500.0,0.00024657,2]
[336881717,1725229840752,-500.0,0.00024657,2]
[336881718,1725229840762,-500.0,0.00024657,2]
[336881719,1725229840771,-500.0,0.00024657,2]
[336881720,1725229840781,-500.0,0.00024657,2]
[336881721,1725229840790,-500.0,0.00024657,2]
[336881722,1725229840800,-609.59,0.00024657,2]
[336881723,1725229840809,-500.0,0.00024657,2]
[336881724,1725229840819,-500.0,0.00024657,2]
[336881725,1725229840828,-500.0,0.00024657,2]
[336881726,1725229840837,-500.0,0.00024657,2]
[336881727,1725229840847,-500.0,0.00024657,2]
[336881728,1725229840857,-500.0,0.00024657,2]
[336881729,1725229840867,-500.0,0.00024657,2]
[336881730,1725229840877,-500.0,0.00024657,2]
[336881731,1725229841024,-500.0,0.00024657,2]
[336881732,1725229841034,-500.0,0.00024657,2]
[336881733,1725229841044,-500.0,0.00024657,2]
[336881734,1725229841053,-500.0,0.00024657,2]
[336881735,1725229841062,-500.0,0.00024657,2]
[336881736,1725229841078,-545.75,0.00024657,2]
[336881737,1725229841087,-500.0,0.00024657,2]
[336881738,1725229841096,-500.0,0.00024657,2]
[336881739,1725229841106,-1093.63,0.00024657,2]
[336881740,1725229841115,-500.0,0.00024657,2]
[336881741,1725229841125,-500.0,0.00024657,2]
[336881742,1725229841134,-500.0,0.00024657,2]
[336881743,1725229841143,-500.0,0.00024657,2]
[336881744,1725229841153,-500.0,0.00024657,2]
[336881745,1725229841163,-500.0,0.00024657,2]
[336881746,1725229841172,-500.0,0.00024657,2]
[336881747,1725229841181,-855.63,0.00024657,2]
[336881748,1725229841190,-603.79,0.00024657,2]
[336881749,1725229841201,-500.0,0.00024657,2]
[336881750,1725229841210,-500.0,0.00024657,2]
[336881751,1725229841219,-828.06,0.00024657,2]
[336881752,1725229841229,-500.0,0.00024657,2]
[336881753,1725229841238,-500.0,0.00024657,2]
[336881754,1725229841247,-500.0,0.00024657,2]
[336881755,1725229841257,-500.0,0.00024657,2]
[336881756,1725229841266,-500.0,0.00024657,2]
[336881757,1725229841276,-500.0,0.00024657,2]
[336881758,1725229841285,-500.0,0.00024657,2]
[336881759,1725229841295,-722.15,0.00024657,2]
[336881760,1725229841304,-500.0,0.00024657,2]
[336881761,1725229841314,-975.62,0.00024657,2]
[336881762,1725229841325,-500.0,0.00024657,2]
[336881763,1725229841334,-288.97975478,0.00024657,2]
[336881764,1725229841344,-500.0,0.00024657,2]
[336881765,1725229841354,-500.0,0.00024657,2]
[336881766,1725229841364,-500.0,0.00024657,2]
[336881767,1725229841374,-500.0,0.00024657,2]
[336881768,1725229841383,-500.0,0.00024657,2]
[336881769,1725229841392,-1087.8,0.00024657,2]
[336881770,1725229841402,-1894.81,0.00024657,2]
[336881771,1725229841413,-500.0,0.00024657,2]
[336881772,1725229841423,-500.0,0.00024657,2]
[336881773,1725229841433,-500.0,0.00024657,2]
[336881774,1725229841443,-500.0,0.00024657,2]
[336881775,1725229841454,-500.0,0.00024657,2]
[336881776,1725229841464,-828.5,0.00024657,2]
[336881777,1725229841475,-500.0,0.00024657,2]
[336881778,1725229841485,-500.0,0.00024657,2]
[336881779,1725229841495,-500.0,0.00024657,2]
[336881780,1725229841504,-1460.07,0.00024657,2]
[336881781,1725229841514,-500.0,0.00024657,2]
[336881782,1725229841525,-500.0,0.00024657,2]
[336881783,1725229841535,-500.0,0.00024657,2]
[336881784,1725229841545,-500.0,0.00024657,2]
[336881785,1725229841555,-187.89479241,0.00024657,2]
[336881786,1725229841567,-500.0,0.00024657,2]
[336881787,1725229841577,-381.24220686,0.00024657,2]
[336881788,1725229841587,-500.0,0.00024657,2]
[336881789,1725229841596,-1489.69,0.00024657,2]
[336881790,1725229841606,-500.0,0.00024657,2]
[336881791,1725229841617,-500.0,0.00024657,2]
[336881792,1725229841626,-500.0,0.00024657,2]
[336881793,1725229841635,-500.0,0.00024657,2]
[336881794,1725229841650,-500.0,0.00024657,2]
[336881795,1725229841659,-501.76369509,0.00024657,2]
[336881796,1725229841670,-712.37,0.00024657,2]
[336881797,1725229841680,-500.0,0.00024657,2]
[336881798,1725229841690,-500.0,0.00024657,2]
[336881799,1725229841700,-235.96967371,0.00024657,2]
[336881800,1725229841710,-500.0,0.00024657,2]
[336881801,1725229841719,-505.29352395,0.00024657,2]
[336881802,1725229841731,-547.4,0.00024657,2]
[336881803,1725229841740,-500.0,0.00024657,2]
[336881804,1725229841750,-500.0,0.00024657,2]
[336881805,1725229841761,-500.0,0.00024657,2]
[336881806,1725229841771,-1053.27,0.00024657,2]
[336881807,1725229841781,-500.0,0.00024657,2]
[336881808,1725229841791,-633.26,0.00024657,2]
[336881809,1725229841800,-1445.81,0.00024657,2]
[336881810,1725229841810,-500.0,0.00024657,2]
[336881811,1725229841822,-630.29,0.00024657,2]
[336881812,1725229841832,-500.0,0.00024657,2]
[336881813,1725229841842,-500.0,0.00024657,2]
[336881814,1725229841852,-500.0,0.00024657,2]
[336881815,1725229841862,-500.0,0.00024657,2]
[336881816,1725229841872,-500.0,0.00024657,2]
[336881817,1725229841883,-842.4,0.00024657,2]
[336881818,1725229841893,-500.0,0.00024657,2]
[336881819,1725229841903,-952.13,0.00024657,2]
[336881820,1725229841913,-500.0,0.00024657,2]
[336881821,1725229841923,-2247.56,0.00024657,2]
[336881822,1725229841933,-867.57,0.00024657,2]
[336881823,1725229841942,-500.0,0.00024657,2]
[336881824,1725229841952,-500.0,0.00024657,2]
[336881825,1725229841961,-716.34,0.00024657,2]
[336881826,1725229841971,-500.0,0.00024657,2]
[336881827,1725229841980,-1311.32,0.00024657,2]
[336881828,1725229841990,-1433.05,0.00024657,2]
[336881829,1725229842000,-500.0,0.00024657,2]
[336881830,1725229842009,-500.0,0.00024657,2]
[336881831,1725229842019,-500.0,0.00024657,2]
[336881832,1725229842029,-500.0,0.00024657,2]
[336881833,1725229842039,-500.0,0.00024657,2]
[336881834,1725229842048,-578.17,0.00024657,2]
[336881835,1725229842058,-1817.35,0.00024657,2]
[336881836,1725229842069,-500.0,0.00024657,2]
[336881837,1725229842079,-258.2864906,0.00024657,2]
[336881838,1725229842090,-528.88123642,0.00024657,2]
[336881839,1725229842099,-500.0,0.00024657,2]
[336881840,1725229842108,-500.0,0.00024657,2]
[336881841,1725229842118,-1964.85,0.00024657,2]
[336881842,1725229842128,-551.19,0.00024657,2]
[336881843,1725229842138,-1617.06,0.00024657,2]
[336881844,1725229842148,-500.0,0.00024657,2]
[336881845,1725229842157,-535.87,0.00024657,2]
[336881846,1725229842167,-500.0,0.00024657,2]
[336881847,1725229842177,-500.0,0.00024657,2]
[336881848,1725229842186,-500.0,0.00024657,2]
[336881849,1725229842195,-923.99,0.00024657,2]
[336881850,1725229842205,-500.0,0.00024657,2]
[336881851,1725229842214,-500.0,0.00024657,2]
[336881852,1725229842224,-803.71,0.00024657,2]
[336881853,1725229842234,-500.0,0.00024657,2]
[336881854,1725229842244,-471.66990104,0.00024657,2]
[336881855,1725229842253,-1625.3,0.00024657,2]
[336881856,1725229842262,-500.0,0.00024657,2]
[336881857,1725229842272,-507.71146256,0.00024657,2]
[336881858,1725229842282,-500.0,0.00024657,2]
[336881859,1725229842291,-500.0,0.00024657,2]
[336881860,1725229842300,-500.0,0.00024657,2]
[336881861,1725229842310,-1417.82,0.00024657,2]
[336881862,1725229842322,-500.0,0.00024657,2]
[336881863,1725229842331,-500.0,0.00024657,2]
[336881864,1725229842341,-500.0,0.00024657,2]
[336881865,1725229842352,-500.0,0.00024657,2]
[336881866,1725229842362,-1228.28,0.00024657,2]
[336881867,1725229842372,-500.0,0.00024657,2]
[336881868,1725229842381,-12931.66,0.00024657,2]
[336881869,1725229842391,-500.0,0.00024657,2]
[336881870,1725229842400,-500.0,0.00024657,2]
[336881871,1725229842409,-2682.79,0.00024657,2]
[336881872,1725229842419,-500.0,0.00024657,2]
[336881873,1725229842429,-500.0,0.00024657,2]
[336881874,1725229842438,-516.3,0.00024657,2]
[336881875,1725229842448,-500.0,0.00024657,2]
[336881876,1725229842458,-500.0,0.00024657,2]
[336881877,1725229842467,-500.0,0.00024657,2]
[336881878,1725229842477,-500.0,0.00024657,2]
[336881879,1725229842487,-500.0,0.00024657,2]
[336881880,1725229842496,-500.0,0.00024657,2]
[336881881,1725229842506,-1562.49,0.00024657,2]
[336881882,1725229842515,-500.0,0.00024657,2]
[336881883,1725229842525,-500.0,0.00024657,2]
[336881884,1725229842536,-1125.21,0.00024657,2]
[336881885,1725229842546,-500.0,0.00024657,2]
[336881886,1725229842556,-500.0,0.00024657,2]
[336881887,1725229842565,-500.0,0.00024657,2]
[336881888,1725229842577,-500.0,0.00024657,2]
[336881889,1725229842587,-500.0,0.00024657,2]
[336881890,1725229842597,-500.0,0.00024657,2]
[336881891,1725229842607,-1179.47,0.00024657,2]
[336881892,1725229842618,-690.37,0.00024657,2]
[336881893,1725229842627,-2664.19,0.00024657,2]
[336881894,1725229842638,-500.0,0.00024657,2]
[336881895,1725229842648,-609.16,0.00024657,2]
[336881896,1725229842662,-500.0,0.00024657,2]
[336881897,1725229842673,-2283.78,0.00024657,2]
[336881899,1725229842684,-1324.95,0.00024657,2]
[336881900,1725229842694,-500.0,0.00024657,2]
[336881901,1725229842703,-500.0,0.00024657,2]
[336881902,1725229842713,-2050.77,0.00024657,2]
[336881903,1725229842723,-576.37,0.00024657,2]
[336881904,1725229842733,-528.95,0.00024657,2]
[336881905,1725229842743,-500.0,0.00024657,2]
[336881906,1725229842752,-500.0,0.00024657,2]
[336881907,1725229842762,-306.81856574,0.00024657,2]
[336881908,1725229842771,-676.49,0.00024657,2]
[336881909,1725229842782,-500.0,0.00024657,2]
[336881911,1725229842791,-721.26,0.00024657,2]
[336881913,1725229842801,-500.0,0.00024657,2]
[336881914,1725229842812,-500.0,0.00024657,2]
[336881915,1725229842823,-500.0,0.00024657,2]
[336881917,1725229842832,-500.0,0.00024657,2]
[336881918,1725229842841,-500.0,0.00024657,2]
[336881920,1725229842850,-603.8133327,0.00024657,2]
[336881921,1725229842860,-302.37385269,0.00024657,2]
[336881922,1725229842869,-500.0,0.00024657,2]
[336881923,1725229842879,-500.0,0.00024657,2]
[336881924,1725229842889,-1536.08,0.00024657,2]
[336881925,1725229842899,-500.0,0.00024657,2]
[336881926,1725229842908,-500.0,0.00024657,2]
[336881927,1725229842917,-1494.56,0.00024657,2]
[336881928,1725229842926,-1158.32,0.00024657,2]
[336881930,1725229842936,-1127.48,0.00024657,2]
[336881931,1725229842948,-500.0,0.00024657,2]
[336881933,1725229842957,-1554.61,0.00024657,2]
[336881934,1725229842967,-500.0,0.00024657,2]
[336881936,1725229842977,-500.0,0.00024657,2]
[336881937,1725229842986,-500.0,0.00024657,2]
[336881938,1725229842995,-500.0,0.00024657,2]
[336881940,1725229843004,-500.0,0.00024657,2]
[336881941,1725229843015,-500.0,0.00024657,2]
[336881942,1725229843025,-500.0,0.00024657,2]
[336881943,1725229843034,-500.0,0.00024657,2]
[336881944,1725229843044,-500.0,0.00024657,2]
[336881945,1725229843053,-500.0,0.00024657,2]
[336881946,1725229843062,-1721.95,0.00024657,2]
[336881947,1725229843074,-500.0,0.00024657,2]
[336881948,1725229843088,-570.14976887,0.00024657,2]
[336881949,1725229843097,-1775.85,0.00024657,2]
[336881951,1725229843107,-574.85,0.00024657,2]
[336881952,1725229843116,-642.25,0.00024657,2]
[336881954,1725229843126,-500.0,0.00024657,2]
[336881956,1725229843135,-2541.03,0.00024657,2]
[336881958,1725229843145,-699.61,0.00024657,2]
[336881960,1725229843154,-500.0,0.00024657,2]
[336881962,1725229843164,-500.0,0.00024657,2]
[336881964,1725229843174,-403.36437749,0.00024657,2]
[336881965,1725229843183,-1051.49,0.00024657,2]
[336881966,1725229843192,-500.0,0.00024657,2]
[336881967,1725229843202,-500.0,0.00024657,2]
[336881969,1725229843211,-500.24314518,0.00024657,2]
[336881970,1725229843221,-567.45,0.00024657,2]
[336881971,1725229843230,-556.61,0.00024657,2]
[336881972,1725229843240,-500.0,0.00024657,2]
[336881973,1725229843250,-500.0,0.00024657,2]
[336881974,1725229843260,-500.0,0.00024657,2]
[336881975,1725229843269,-1158.11,0.00024657,2]
[336881977,1725229843279,-500.0,0.00024657,2]
[336881979,1725229843288,-500.0,0.00024657,2]
[336881981,1725229843298,-7890.92,0.00024657,2]
[336881983,1725229843307,-500.0,0.00024657,2]
[336881985,1725229843316,-500.0,0.00024657,2]
[336881987,1725229843331,-500.0,0.00024657,2]
[336881989,1725229843341,-1722.8,0.00024657,2]
[336881991,1725229843352,-507.63146472,0.00024657,2]
[336881993,1725229843362,-1408.0,0.00024657,2]
[336881994,1725229843372,-728.64,0.00024657,2]
[336881996,1725229843382,-1238.55,0.00024657,2]
[336881998,1725229843391,-500.0,0.00024657,2]
[336881999,1725229843401,-6037.83,0.00024657,2]
[336882000,1725229843412,-500.0,0.00024657,2]
[336882001,1725229843422,-717.43,0.00024657,2]
[336882002,1725229843431,-1558.04,0.00024657,2]
[336882003,1725229843441,-500.0,0.00024657,2]
[336882004,1725229843451,-500.0,0.00024657,2]
[336882005,1725229843461,-500.0,0.00024657,2]
[336882006,1725229843470,-500.0,0.00024657,2]
[336882007,1725229843480,-500.0,0.00024657,2]
[336882008,1725229843490,-500.0,0.00024657,2]
[336882009,1725229843500,-1933.99,0.00024657,2]
[336882010,1725229843509,-1714.09,0.00024657,2]
[336882011,1725229843519,-500.0,0.00024657,2]
[336882012,1725229843529,-500.0,0.00024657,2]
[336882013,1725229843538,-647.77,0.00024657,2]
[336882014,1725229843548,-347.67815756,0.00024657,2]
[336882015,1725229843557,-1461.48,0.00024657,2]
[336882016,1725229843566,-905.38461028,0.00024657,2]
[336882017,1725229843923,-1111.61538972,0.00024657,2]
[336882018,1725229843932,-500.0,0.00024657,2]
[336882019,1725229843942,-500.0,0.00024657,2]
[336882020,1725229843950,-500.0,0.00024657,2]
[336882021,1725229843960,-500.0,0.00024657,2]
[336882022,1725229843969,-2442.88,0.00024657,2]
[336882023,1725229843979,-2208.18,0.00024657,2]
[336882024,1725229843989,-500.0,0.00024657,2]
[336882025,1725229843999,-508.27449192,0.00024657,2]
[336882026,1725229844009,-500.0,0.00024657,2]
[336882027,1725229844021,-500.0,0.00024657,2]
[336882028,1725229844030,-500.0,0.00024657,2]
[336882029,1725229844039,-1110.58,0.00024657,2]
[336882030,1725229844049,-1546.13,0.00024657,2]
[336882031,1725229844059,-500.0,0.00024657,2]
[336882032,1725229844070,-500.0,0.00024657,2]
[336882033,1725229844080,-500.0,0.00024657,2]
[336882034,1725229844089,-1484.58,0.00024657,2]
[336882035,1725229844099,-500.0,0.00024657,2]
[336882036,1725229844108,-500.0,0.00024657,2]
[336882037,1725229844118,-500.0,0.00024657,2]
[336882038,1725229844127,-1246.4,0.00024657,2]
[336882039,1725229844137,-524.99,0.00024657,2]
[336882040,1725229844147,-200.0,0.00024658,2]
[336882041,1725229844156,-380.0,0.00024658,2]
[336882042,1725229844165,-500.0,0.00024672,2]
[336882043,1725229844175,-500.0,0.00024673,2]
[336882044,1725229844184,-500.0,0.00024673,2]
[336882045,1725229844193,-182.5559643,0.00024694,2]
[336882046,1725229844202,-153.0,0.000247,2]
[336882047,1725229844211,-801.97954264,0.00024831,2]
[336882048,1725229844227,-429.42820607,0.00024831,2]
[336882049,1725229844236,-182.5559643,0.00024831,2]
[336882050,1725229844246,-6.02000128,0.00024853,2]
[336882051,1725229844257,-1776.7827862,0.00024853,2]
[336882052,1725229844270,-463.60802538,0.00024853,2]
[336882053,1725229844281,-755.1747946,0.00024853,2]
[336882054,1725229844540,-551.55,0.00024657,2]
[336882055,1725229844550,-500.0,0.00024657,2]
[336882056,1725229844560,-1877.39274382,0.00024853,2]
[336882057,1725229844572,-3211.1499226,0.0002489,3]
[336882058,1725229844581,-57957.46935743,0.000249,2]
[336882059,1725229844591,-8027.8748065,0.00024921,3]
[336882060,1725229844600,-500.0,0.0002493,2]
[336882061,1725229844609,-500.0,0.00024931,2]
[336882062,1725229844619,-500.0,0.00024931,2]
[336882063,1725229844628,-500.0,0.00024931,2]
[336882064,1725229844638,-500.0,0.00024931,2]
[336882065,1725229844648,-483.96575754,0.00024931,2]
[336882066,1725229844660,-500.0,0.00024931,2]
[336882067,1725229844670,-500.0,0.00024931,2]
[336882068,1725229844679,-500.0,0.00024931,2]
[336882069,1725229844688,-385.28181826,0.00024931,2]
[336882070,1725229844698,-500.0,0.00024931,2]
[336882071,1725229844707,-500.0,0.00024931,2]
[336882073,1725229844716,-500.0,0.00024931,2]
[336882074,1725229844725,-500.0,0.00024931,2]
[336882075,1725229844735,-500.0,0.00024931,2]
[336882076,1725229844745,-500.0,0.00024931,2]
[336882077,1725229844755,-500.0,0.00024931,2]
[336882078,1725229844765,-500.0,0.00024931,2]
[336882080,1725229844774,-500.0,0.00024931,2]
[336882082,1725229844783,-500.0,0.00024931,2]
[336882083,1725229844793,-500.0,0.00024931,2]
[336882085,1725229844802,-500.0,0.00024931,2]
[336882087,1725229844812,-500.0,0.00024931,2]
[336882089,1725229844825,-358.4850641,0.00024931,2]
[336882091,1725229844834,-500.0,0.00024931,2]
[336882092,1725229844844,-500.0,0.00024931,2]
[336882093,1725229844854,-420.58768688,0.00024931,2]
[336882094,1725229844865,-500.0,0.00024931,2]
[336882096,1725229844874,-500.0,0.00024931,2]
[336882098,1725229844884,-500.0,0.00024931,2]
[336882100,1725229844894,-500.0,0.00024931,2]
[336882101,1725229844904,-513.91093587,0.00024931,2]
[336882102,1725229844914,-535.44,0.00024931,2]
[336882103,1725229844923,-500.0,0.00024931,2]
[336882104,1725229844934,-412.68281981,0.00024931,2]
[336882105,1725229844943,-500.0,0.00024931,2]
[336882106,1725229844952,-500.0,0.00024931,2]
[336882107,1725229844962,-837.46,0.00024931,2]
[336882108,1725229844972,-500.0,0.00024931,2]
[336882109,1725229844981,-500.0,0.00024931,2]
[336882110,1725229844991,-500.0,0.00024931,2]
[336882111,1725229845000,-804.59,0.00024931,2]
[336882112,1725229845010,-458.16028587,0.00024931,2]
[336882113,1725229845020,-500.0,0.00024931,2]
[336882114,1725229845029,-500.0,0.00024931,2]
[336882115,1725229845039,-639.98416241,0.00024931,2]
[336882116,1725229845048,-500.0,0.00024931,2]
[336882117,1725229845059,-500.0,0.00024931,2]
[336882118,1725229845071,-636.08,0.00024931,2]
[336882119,1725229845081,-500.0,0.00024931,2]
[336882120,1725229845091,-729.17,0.00024931,2]
[336882121,1725229845101,-500.0,0.00024931,2]
[336882122,1725229845111,-500.0,0.00024931,2]
[336882123,1725229845121,-297.12393522,0.00024931,2]
[336882124,1725229845130,-500.0,0.00024931,2]
[336882125,1725229845139,-503.44362046,0.00024931,2]
[336882126,1725229845148,-500.0,0.00024931,2]
[336882127,1725229845158,-500.0,0.00024931,2]
[336882128,1725229845168,-500.0,0.00024931,2]
[336882129,1725229845177,-970.74,0.00024931,2]
[336882130,1725229845187,-500.0,0.00024931,2]
[336882131,1725229845196,-500.0,0.00024931,2]
[336882132,1725229845206,-500.0,0.00024931,2]
[336882133,1725229845215,-500.0,0.00024931,2]
[336882134,1725229845224,-500.0,0.00024931,2]
[336882135,1725229845233,-500.0,0.00024931,2]